Cogmind - Beta 11 X5 @@@ ROGUE MODE // 2021.06.06 @ 22:45:55 Player: Mares Result: Destroyed by Y-54 Guardian with Flak Gun Performance ------------- Evolutions (3) 1500 Regions Visited (8) 1600 Robots Destroyed (67) 335 Value Destroyed (1874) 1874 Prototype IDs (4) 80 Alien Tech Used (0) 0 Bonus (0) 0 TOTAL SCORE: 5389 Bonus ------- None Cogmind --------- Core Integrity 0/700 Matter 190/300 Energy 52/100 System Corruption 14% Temperature Cool (6) Movement Core (1400) Ox27 Location -7/Factory Parts ------- > --- POWER (1) -------- (None) > --- PROPULSION (4) --- (None) > --- UTILITY (6) ------ Huge Storage Unit Hacking Suite > --- WEAPON (2) ------- Hammer > --- INVENTORY (25) --- Light Deuterium Engine Light Nuclear Core Cesium-ion Thruster Improved Cooling System Large Storage Unit Advanced Weight Redist. System Improved Sensor Array Improved Salvage Targeting Computer Utility Shielding Light Armor Plating System Shield Precision Shock Rifle Heavy Ion Cannon Mini Grenade Launcher Peak State ------------ > --- POWER ------------ Micro Nuclear Core > --- PROPULSION ------- Wheel Wheel Wheel Wheel > --- UTILITY ---------- Improved Cooling System Huge Storage Unit Improved Sensor Array Hardened Medium Armor Plating Hacking Suite System Shield > --- WEAPON ----------- Heavy Particle Cannon Mini Grenade Launcher > --- INVENTORY -------- Light Deuterium Engine Light Nuclear Core Light Treads Cesium-ion Thruster Improved Cooling System Large Storage Unit Advanced Weight Redist. System Signal Interpreter Improved Salvage Targeting Computer Light Armor Plating Hardened Light Armor Plating Hardened Medium Armor Plating System Shield Precision Shock Rifle Pulse Rifle EM Pulse Cannon Heavy Ion Cannon Heavy Ion Cannon Plasma Cannon Autogun Shock Bomb Launcher Hammer [Rating: 36] Favorites ----------- Power Ion Engine Engine Ion Engine Power Core Micro Nuclear Core Propulsion Compact Wheel Treads Light Treads Wheel Compact Wheel Utility Huge Storage Unit Device Heat Sink Storage Huge Storage Unit Processor Signal Interpreter Hackware Hacking Suite Protection Light Armor Plating Weapon EM Pulse Gun Energy Gun EM Pulse Gun Energy Cannon Plasma Cannon Ballistic Gun Autogun Launcher Mini Grenade Launcher Impact Weapon Hammer Build | -11 -10 -10 -9 -9 -9 -8 -8 -7 ------- Run | Scr Mat Min Mat Min Exi Min Mat Fac Slots Evolved 6 | . . . 2 . . . 2 2 Power . | . . . . . . . . . Propulsion 2 | . . . . . . . 1 1 Utility 4 | . . . 2 . . . 1 1 Weapon . | . . . . . . . . . Parts Attached 62 | 6 3 . 4 3 . . 19 27 Power 5 | 1 . . . 1 . . 2 1 Engine 4 | 1 . . . 1 . . 2 . Core 1 | . . . . . . . . 1 Reactor . | . . . . . . . . . Propulsion 13 | 2 . . 1 . . . 6 4 Treads 4 | . . . 1 . . . 1 2 Leg . | . . . . . . . . . Wheel 9 | 2 . . . . . . 5 2 Hover . | . . . . . . . . . Flight . | . . . . . . . . . Utility 21 | 1 3 . 3 1 . . 5 8 Device 4 | . . . 1 . . . 1 2 Storage 3 | 1 2 . . . . . . . Processor 2 | . . . . . . . 1 1 Hackware 3 | . . . 1 . . . 1 1 Protection 9 | . 1 . 1 1 . . 2 4 Artifact . | . . . . . . . . . Weapon 23 | 2 . . . 1 . . 6 14 Energy Gun 10 | 2 . . . 1 . . 5 2 Energy Cannon 9 | . . . . . . . 1 8 Ballistic Gun 1 | . . . . . . . . 1 Ballistic Cannon . | . . . . . . . . . Launcher 2 | . . . . . . . . 2 Special Weapon . | . . . . . . . . . Impact Weapon 1 | . . . . . . . . 1 Slashing Weapon . | . . . . . . . . . Piercing Weapon . | . . . . . . . . . Special Melee Weapon . | . . . . . . . . . Unidentified Prototypes 2 | . . . . . . . 1 1 Corrupted Parts 2 | . . . 1 . . . . 1 System Corruption 14 | . . . 4 . . . . 10 Parts Lost 31 | . . . 1 3 . . 10 17 Power 5 | . . . . 1 . . 2 2 Propulsion 10 | . . . 1 . . . 3 6 Utility 7 | . . . . 1 . . 3 3 Weapon 9 | . . . . 1 . . 2 6 Highest Loss Streak 9 | . . . 1 2 . . 3 9 Average Slot Usage (%) 95 | . 96 100 92 99 100 100 91 87 Engine 9 | . 14 14 11 10 11 11 8 2 Treads 5 | . . . 8 11 11 11 4 1 Wheel 18 | . 28 28 13 11 11 11 18 21 Device 7 | . . . 7 11 11 11 11 7 Storage 10 | . 14 14 11 11 11 11 9 7 Hackware 8 | . . . 3 11 11 11 8 11 Protection 11 | . 10 14 15 10 11 11 12 9 Energy Gun 18 | . 28 28 22 22 22 22 14 5 Energy Cannon 1 | . . . . . . . 2 6 Naked Turns . | . . . . . . . . . Heaviest Build 113 | 11 87 87 91 92 92 92 102 113 Greatest Support 48 | 26 26 26 26 16 16 16 48 46 Greatest Overweight (x) 30 | . 3 3 5 5 5 5 6 30 Average Overweight (x) 3 | . 1 3 4 5 5 5 3 2 Largest Inventory Capacity 25 | 8 25 25 25 25 25 25 25 25 Average Capacity 24 | 7 20 25 25 25 25 25 25 25 Most Carried 25 | 5 16 16 20 22 22 22 25 25 Average Carried 19 | 3 11 16 18 18 22 22 22 22 Final Capacity 25 | 8 25 25 25 25 25 25 25 25 Final Carried 24 | 5 16 16 20 22 22 22 24 14 Class Distribution -------------------- 67% | Mutant 26% | Scavenger-Mutant 5% | Hacker-Mutant Dominant Class ---------------- Mutant | -10/Materials Mutant | -10/Mines Mutant | -9/Materials Mutant | -9/Mines Mutant | -9/Exiles Mutant | -8/Mines Scavenger-Mutant | -8/Materials Scavenger-Mutant | -7/Factory Resources | -11 -10 -10 -9 -9 -9 -8 -8 -7 ----------- Run | Scr Mat Min Mat Min Exi Min Mat Fac Matter Collected 793 | 260 30 . 40 38 . 10 159 256 Remotely . | . . . . . . . . . Salvage Created 2600 | . 157 . 169 186 . . 963 1125 Parts 151 | . 19 . 14 10 . . 58 50 Haulers Intercepted 2 | . . . . . . . 2 . Recyclers Shooed 5 | . 1 . . . . . 1 3 Parts Field Recycled . | . . . . . . . . . Retrieved Matter . | . . . . . . . . . Parts Self-Destructed . | . . . . . . . . . Prevented . | . . . . . . . . . Kills | -11 -10 -10 -9 -9 -9 -8 -8 -7 ------- Run | Scr Mat Min Mat Min Exi Min Mat Fac Combat Hostiles Destroyed 44 | . 2 . 5 6 . . 15 16 Melee 1 | . . . . . . . . 1 Guns 28 | . 2 . 5 6 . . 13 2 Cannons 7 | . . . . . . . 1 6 AOE 4 | . . . . . . . 1 3 Classes Destroyed 13 | . 3 . 2 1 . . 2 5 Worker 4 | . . . . . . . 1 3 Builder 6 | . 1 . . . . . 2 3 Hauler 2 | . . . . . . . 2 . Recycler 5 | . . . . 1 . . 2 2 Operator 5 | . 2 . . . . . 1 2 Watcher 1 | . . . . . . . . 1 Swarmer 12 | . . . 3 6 . . 3 . Grunt 22 | . 2 . . . . . 11 9 Brawler 1 | . . . . . . . . 1 Duelist 2 | . . . . . . . . 2 Sentry 4 | . . . 2 . . . 1 1 Hunter 1 | . . . . . . . . 1 Programmer 2 | . . . . . . . . 2 Best Kill Streak 9 | . 2 . 3 3 . . 6 9 Combat Bots Only 4 | . 2 . 3 3 . . 4 3 Max Kills in Single Turn 3 | . 1 . 1 1 . . 2 3 Gunslinging . | . . . . . . . . . Exploded 2 | . . . . . . . 1 2 Melee 1 | . . . . . . . . 1 Uniques/NPCs Destroyed . | . . . . . . . . . Combat | -11 -10 -10 -9 -9 -9 -8 -8 -7 -------- Run | Scr Mat Min Mat Min Exi Min Mat Fac Damage Taken 4154 | . 110 . 178 258 . . 1006 2602 Core 983 | . 22 . 21 48 . . 188 704 Absorbed by Shields . | . . . . . . . . . Core Remaining (%) 84 | 100 . 91 . . . 82 65 . Volleys Fired 175 | . 23 . 7 16 . . 54 75 Largest 2 | . 2 . 2 2 . . 2 2 Hottest 160 | . 80 . 80 80 . . 160 155 Shots Fired 332 | . 46 . 14 32 . . 103 137 Gun 208 | . 46 . 14 32 . . 72 44 Cannon 115 | . . . . . . . 31 84 Launcher 9 | . . . . . . . . 9 Special . | . . . . . . . . . Kinetic 13 | . . . . . . . . 13 Thermal 239 | . 23 . 7 16 . . 85 108 Explosive 4 | . . . . . . . . 4 Electromagnetic 76 | . 23 . 7 16 . . 18 12 Robot Hit Streak 35 | . 5 . 14 3 . . 12 35 Robot Miss Streak 6 | . 3 . . 6 . . 5 6 Penetration Max . | . . . . . . . . . Secondary Targets 5 | . 1 . . 3 . . 1 . Max Gunslinging Chain 1 | . 1 . . 1 . . 1 . Shots Hit Robots 216 | . 27 . 11 11 . . 76 91 Core Hits 116 | . 10 . 7 7 . . 48 44 Critical Kills 2 | . . . . . . . . 2 Critical Parts Destroyed . | . . . . . . . . . Critical Strikes 5 | . 1 . . . . . . 4 Burn 2 | . . . . . . . . 2 Meltdown 2 | . . . . . . . . 2 Corrupt 1 | . 1 . . . . . . . Melee Attacks 3 | . . . . . . . . 3 Impact 3 | . . . . . . . . 3 Slashing . | . . . . . . . . . Piercing . | . . . . . . . . . Sneak Attacks . | . . . . . . . . . Combat Hostiles . | . . . . . . . . . Follow-up Attacks . | . . . . . . . . . Damage Inflicted 5046 | . 342 . 119 125 . . 1769 2691 Guns 2232 | . 342 . 119 125 . . 1063 583 Cannons 1877 | . . . . . . . 565 1312 Explosions 896 | . . . . . . . 141 755 Melee 41 | . . . . . . . . 41 Ramming . | . . . . . . . . . Kinetic 113 | . . . . . . . . 113 Thermal 3582 | . 155 . 45 46 . . 1601 1735 Explosive 328 | . . . . . . . . 328 Electromagnetic 982 | . 187 . 74 79 . . 168 474 Impact 41 | . . . . . . . . 41 Slashing . | . . . . . . . . . Piercing . | . . . . . . . . . Highest Corruption 14 | . . . 4 4 4 4 . 14 Average Corruption 5 | . . . 4 4 4 4 . 10 Corruption Purged . | . . . . . . . . . Effects 50 | . . . . 9 7 13 . 21 Message Errors 11 | . . . . 1 2 4 . 4 Matter Fused 8 | . . . . 2 1 2 . 3 Heat Flow Errors 7 | . . . . 2 1 3 . 1 Energy Discharges 8 | . . . . 3 1 2 . 2 Parts Rejected 1 | . . . . . . . . 1 Data Loss (minor) 7 | . . . . 1 2 2 . 2 Data Loss (major) 2 | . . . . . . . . 2 Misfires 2 | . . . . . . . . 2 Alerts 2 | . . . . . . . . 2 Weapon Failures 2 | . . . . . . . . 2 Overload Shots . | . . . . . . . . . Overflow Damage 107 | . . . . . . . 56 51 Projectiles 76 | . . . . . . . 25 51 Explosions 31 | . . . . . . . 31 . Melee . | . . . . . . . . . Knockbacks . | . . . . . . . . . Impact . | . . . . . . . . . Kinetic . | . . . . . . . . . Secondary . | . . . . . . . . . Self-Inflicted Damage 153 | . . . . . . . 38 115 Shots 8 | . . . . . . . 1 7 Rammed . | . . . . . . . . . Targets Rammed . | . . . . . . . . . Kicked . | . . . . . . . . . Crushed . | . . . . . . . . . Highest Temperature 319 | . 126 . 54 242 168 174 319 85 Average Temperature 50 | . 35 . 17 68 93 89 76 21 Received Heat Transfer 1191 | . 60 . 36 . . . 450 645 Effects 1 | . . . . . . . 1 . Energy Bleed 1 | . . . . . . . 1 . Siege Activations . | . . . . . . . . . Robots Corrupted . | . . . . . . . . . Combat Hostiles . | . . . . . . . . . Parts Fried 5 | . . . . 1 . . . 4 Impact Corruptions . | . . . . . . . . . Robots Melted 4 | . . . . . . . . 4 Combat Hostiles 4 | . . . . . . . . 4 Parts Melted 12 | . . . . 1 . . 4 7 Heat Transferred 7283 | . 350 . 100 100 . . 3255 3478 Parts Sabotaged . | . . . . . . . . . Parts Stolen . | . . . . . . . . . Parts Stripped . | . . . . . . . . . Power Chain Reactions 4 | . . . . . . . 2 2 Missiles Intercepted . | . . . . . . . . . Alert | -11 -10 -10 -9 -9 -9 -8 -8 -7 ------- Run | Scr Mat Min Mat Min Exi Min Mat Fac Peak Influence 393 | . 135 5 143 170 . . 298 393 Initial 101 | . . 5 1 55 . . . 101 Average 97 | . 49 5 58 68 . . 166 202 Maximum Alert Level 1 | . . . . . . . 1 1 Low Security (%) 78 | 100 100 100 100 100 . 100 48 45 Level 1 21 | . . . . . . . 51 54 Level 2 . | . . . . . . . . . Level 3 . | . . . . . . . . . Level 4 . | . . . . . . . . . Level 5 . | . . . . . . . . . High Security . | . . . . . . . . . Max Security . | . . . . . . . . . Squads Dispatched 12 | . 1 . 1 1 . . 2 7 Investigation 4 | . . . 1 1 . . 1 1 Extermination 1 | . . . . . . . . 1 Reinforcement 6 | . 1 . . . . . 1 4 Assault . | . . . . . . . . . Garrison 1 | . . . . . . . . 1 Intercept . | . . . . . . . . . Construction Impeded 1 | . . . . . . . . 1 Haulers Reinforced . | . . . . . . . . . Cargo Convoy Interrupts . | . . . . . . . . . Stealth | -11 -10 -10 -9 -9 -9 -8 -8 -7 --------- Run | Scr Mat Min Mat Min Exi Min Mat Fac Distress Signals 4 | . 1 . . . . . . 3 Communications Jammed . | . . . . . . . . . Distress Signals . | . . . . . . . . . Times Spotted 74 | . 12 . 5 7 . . 23 27 Peak Tracking Total 6 | . 3 . 3 3 . . 6 6 Tactical Retreats 3 | . . . . . . . 2 1 Traps | -11 -10 -10 -9 -9 -9 -8 -8 -7 ------- Run | Scr Mat Min Mat Min Exi Min Mat Fac Traps Triggered 3 | . . . 1 . . . 1 1 Indirectly . | . . . . . . . . . Trap Hack Attempts . | . . . . . . . . . Triggered . | . . . . . . . . . Disarmed . | . . . . . . . . . Reprogrammed . | . . . . . . . . . Reused . | . . . . . . . . . Traps Extracted . | . . . . . . . . . Installed . | . . . . . . . . . Triggered . | . . . . . . . . . Machines | -11 -10 -10 -9 -9 -9 -8 -8 -7 ---------- Run | Scr Mat Min Mat Min Exi Min Mat Fac Machines Disabled 5 | . . . . . . . 3 2 Max in Single Turn 1 | . . . . . . . 1 1 Machines Sabotaged . | . . . . . . . . . Garrisons Compromised . | . . . . . . . . . Overloaded Fab Kills . | . . . . . . . . . Fab Network Shutdowns . | . . . . . . . . . Hacking | -11 -10 -10 -9 -9 -9 -8 -8 -7 --------- Run | Scr Mat Min Mat Min Exi Min Mat Fac Machines Accessed 11 | . 2 . 1 2 . . 2 4 Terminals 8 | . 2 . 1 1 . . 2 2 Fabricators . | . . . . . . . . . Repair Stations . | . . . . . . . . . Recycling Units . | . . . . . . . . . Scanalyzers 1 | . . . . . . . . 1 Garrison Access 1 | . . . . . . . . 1 Total Hacks 33 | . 9 . 3 4 . . 5 12 Successful 19 | . 6 . 2 3 . . 2 6 Failed 14 | . 3 . 1 1 . . 3 6 Catastrophic 4 | . . . . . . . 2 2 Database Lockouts . | . . . . . . . . . Manual 18 | . 3 . 3 . . . 4 8 Terminals 27 | . 9 . 3 3 . . 5 7 Fabricators . | . . . . . . . . . Repair Stations . | . . . . . . . . . Recycling Units . | . . . . . . . . . Scanalyzers 2 | . . . . . . . . 2 Garrison Access 3 | . . . . . . . . 3 Terminal Hacks 14 | . 5 . 1 3 . . 2 3 Record 1 | . . . . 1 . . . . Part Schematic 2 | . . . . . . . . 2 Robot Analysis 1 | . 1 . . . . . . . Prototype ID Bank 1 | . . . . . . . 1 . Open Door 1 | . . . . 1 . . . . Level Access Points 1 | . . . . 1 . . . . Branch Access Points 2 | . 1 . 1 . . . . . Emergency Access Points 1 | . 1 . . . . . . . Terminal Index 1 | . . . . . . . . 1 Locate Traps 1 | . 1 . . . . . . . Recall Investigation 1 | . . . . . . . 1 . Registered Components 1 | . 1 . . . . . . . Fabricator Hacks . | . . . . . . . . . Repair Station Hacks . | . . . . . . . . . Recycling Unit Hacks . | . . . . . . . . . Scanalyzer 2 | . . . . . . . . 2 Insert Component 1 | . . . . . . . . 1 Analyze 1 | . . . . . . . . 1 Garrison Access Hacks . | . . . . . . . . . Unauthorized Hacks 3 | . 1 . 1 . . . . 1 Terminals 3 | . 1 . 1 . . . . 1 Botnet 1 | . . . . . . . . 1 Operators 2 | . 1 . 1 . . . . . Fabricators . | . . . . . . . . . Repair Stations . | . . . . . . . . . Recycling Units . | . . . . . . . . . Scanalyzers . | . . . . . . . . . Garrison Access . | . . . . . . . . . Data Cores Recovered 1 | . 1 . . . . . . . Used 1 | . 1 . . . . . . . Hacking Detections 9 | . 2 . 1 1 . . 2 3 Full Trace Events 2 | . . . . 1 . . . 1 Feedback Events . | . . . . . . . . . Feedback Blocked . | . . . . . . . . . Robot Schematics Acquired . | . . . . . . . . . Robots Built . | . . . . . . . . . Matter . | . . . . . . . . . Time . | . . . . . . . . . Total Robot Build Rating . | . . . . . . . . . Part Schematics Acquired 3 | . . . . . . . . 3 Parts Built . | . . . . . . . . . Matter . | . . . . . . . . . Time . | . . . . . . . . . Total Part Build Rating . | . . . . . . . . . Parts Repaired . | . . . . . . . . . Time . | . . . . . . . . . Parts Recycled . | . . . . . . . . . Recycled Matter . | . . . . . . . . . Retrieved Matter . | . . . . . . . . . Retrieved Components . | . . . . . . . . . Parts Scanalyzed 1 | . . . . . . . . 1 Part Schematics Acquired 1 | . . . . . . . . 1 Parts Damaged . | . . . . . . . . . Bothacking | -11 -10 -10 -9 -9 -9 -8 -8 -7 ------------ Run | Scr Mat Min Mat Min Exi Min Mat Fac Used RIF Installer . | . . . . . . . . . Robots Hacked . | . . . . . . . . . Non-combat . | . . . . . . . . . Combat . | . . . . . . . . . Robot Hacks Applied . | . . . . . . . . . Relay Couplers Released . | . . . . . . . . . Robots Rewired . | . . . . . . . . . Allies Hacked . | . . . . . . . . . Hacks Repelled . | . . . . . . . . . Allies | -11 -10 -10 -9 -9 -9 -8 -8 -7 -------- Run | Scr Mat Min Mat Min Exi Min Mat Fac Total Allies . | . . . . . . . . . Largest Group . | . . . . . . . . . Highest-Rated Group . | . . . . . . . . . Highest-Rated Ally . | . . . . . . . . . Total Orders . | . . . . . . . . . Ally Attacks . | . . . . . . . . . Total Damage . | . . . . . . . . . Kills . | . . . . . . . . . Allies Corrupted . | . . . . . . . . . Allies Melted . | . . . . . . . . . Intel | -11 -10 -10 -9 -9 -9 -8 -8 -7 ------- Run | Scr Mat Min Mat Min Exi Min Mat Fac Robot Analysis Total 1 | . 1 . . . . . . . Derelict Logs Recovered 2 | . . 1 . 1 . . . . Drone Launches . | . . . . . . . . . Drone Recoveries . | . . . . . . . . . Exploration | -11 -10 -10 -9 -9 -9 -8 -8 -7 ------------- Run | Scr Mat Min Mat Min Exi Min Mat Fac Turns Passed 4150 | 58 457 395 214 675 364 450 670 867 Spaces Moved 2118 | 50 312 58 112 347 209 258 313 459 Core 4 | 3 . . . . . . . 1 Treads . | . . . . . . . . . Legs . | . . . . . . . . . Wheels 2114 | 47 312 58 112 347 209 258 313 458 Hover . | . . . . . . . . . Flight . | . . . . . . . . . Fastest Speed 50 | 50 90 135 135 175 175 175 116 110 Average Speed 148 | 87 118 135 162 175 175 175 142 128 Slowest Speed 1550 | 100 135 135 175 175 175 175 190 1550 Overloaded Moves . | . . . . . . . . . Propulsion Burnouts . | . . . . . . . . . Robots Hopped . | . . . . . . . . . Cave-ins Triggered . | . . . . . . . . . Exploration Rate (%) 35 | 3 47 23 15 66 60 58 30 13 Regions Visited 8 Branch Regions 4 Pre-discovered Areas . | . . . . . . . . . Known Exits Taken 4 | . 1 1 1 . . 1 . . Unknown Exits Taken 4 | 1 . . . 1 1 . 1 . Scrap Searched 2 | . . . . 1 . 1 . . Spaces Dug . | . . . . . . . . . Terrain Destroyed 41 | . . . . . . . 13 28 Melee . | . . . . . . . . . Projectile 4 | . . . . . . . 3 1 AOE 37 | . . . . . . . 10 27 Terrain Rammed . | . . . . . . . . . Walls Destroyed . | . . . . . . . . . Machines Disabled . | . . . . . . . . . Actions | -11 -10 -10 -9 -9 -9 -8 -8 -7 --------- Run | Scr Mat Min Mat Min Exi Min Mat Fac Total 2793 | 60 354 375 129 383 208 257 427 600 Wait 377 | . 6 318 2 13 . . 20 18 Move 2110 | 49 311 57 111 346 208 257 312 459 Hop . | . . . . . . . . . Pick Up 46 | 5 10 . 5 5 . . 14 7 Fast Attach 24 | 6 1 . 2 . . . 8 7 Attach 28 | . . . 1 3 . . 9 15 Detach 2 | . . . . . . . . 2 Swap 10 | . 2 . 1 . . . 2 5 Drop 18 | . 1 . . . . . 8 9 Fire 175 | . 23 . 7 16 . . 54 75 Melee 3 | . . . . . . . . 3 Ram . | . . . . . . . . . Kick . | . . . . . . . . . Crush . | . . . . . . . . . Escape Stasis . | . . . . . . . . . Rewire . | . . . . . . . . . Trap . | . . . . . . . . . Miscellaneous . | . . . . . . . . . Route ------- -11/Scrapyard -10/Materials (discovered 3 exits: *Mat / *Min x2) -10/Mines -9/Materials (discovered 2 exits: *Min x2) -9/Mines (discovered 3 exits: *Mat x2 / [*Exi]) -9/Exiles -8/Mines -8/Materials -7/Factory History --------- Turn | Location | Event 19 | -11/Scrapyard | Discovered new exit (range 16) 59 | -11/Scrapyard | Entered Materials 59 | -10/Materials | Discovered new exit (range 8) 75 | -10/Materials | Identified exit to Mines 222 | -10/Materials | Discovered new exit (range 9) 308 | -10/Materials | Build established: Mutant 516 | -10/Materials | Entered Mines 546 | -10/Mines | Identified exit to Materials 911 | -10/Mines | Entered Materials 911 | -9/Materials | Evolved 2 slots: Utility x2 1056 | -9/Materials | Identified exit to Mines 1125 | -9/Materials | Entered Mines 1126 | -9/Mines | Assembled infested the area 1158 | -9/Mines | Identified exit to Materials 1204 | -9/Mines | Met 8R-AWN 1432 | -9/Mines | Learned Materials security intel 1625 | -9/Mines | Met a Derelict who couldn't figure out how to use a Trap Extractor 1793 | -9/Mines | Discovered new exit (range 5) 1800 | -9/Mines | Entered Exiles 1842 | -9/Exiles | Welcomed by 8R-AWN 1874 | -9/Exiles | Met EX-HEX 1926 | -9/Exiles | Met EX-BIN 1946 | -9/Exiles | Met EX-DEC 2142 | -9/Exiles | Discovered new exit (range 14) 2164 | -9/Exiles | Entered Mines 2588 | -8/Mines | Discovered exit to Materials (range 4) 2614 | -8/Mines | Entered Materials 2614 | -8/Materials | Evolved 2 slots: Propulsion x1, Utility x1 2977 | -8/Materials | Lost 3 parts (1u2w) 3061 | -8/Materials | Build established: Scavenger-Mutant 3124 | -8/Materials | Lost 3 parts (1p2n) 3172 | -8/Materials | Discovered new exit (range 10) 3284 | -8/Materials | Entered Factory 3284 | -7/Factory | Evolved 2 slots: Propulsion x1, Utility x1 3609 | -7/Factory | System corruption reached 10% 3919 | -7/Factory | Lost 5 parts (3n1u1w) 4053 | -7/Factory | Garrison activated, responded to threat 4126 | -7/Factory | Core integrity fell below 50% 4145 | -7/Factory | Core integrity fell below 20% 4151 | -7/Factory | Destroyed by Y-54 Guardian with Flak Gun Last Messages --------------- 04133_ Critical hit (Burn: +37). 04134_ U-05 Engineer lays Concrete. 04139_ R-06 Scavenger collects Wheel. 04139_ Imp. Cooling System destroyed. 04140_ Critical hit (Burn: +37). 04140_ U-05 Engineer lays Concrete. 04141_ System corrupted: FCS attempts to trigger Hvy. Ion Cannon. 04141_ System corrupted: Hvy. Ion Cannon misfires. 04141_ U-05 Engineer lays Concrete. 04142_ K-01 Serf collects debris. 04142_ R-06 Scavenger collects Terrain Scan Processor. 04142_ U-05 Engineer lays Concrete. 04145_ K-01 Serf collects debris. 04145_ U-05 Engineer lays Concrete. 04145_ R-06 Scavenger collects Corrupted Wheel. 04146_ U-05 Engineer lays Concrete. 04148_ Hvy. Ion Cannon destroyed. 04149_ U-05 Engineer builds a Wall. 04149_ K-01 Serf collects debris. 04151_ R-06 Scavenger collects Corrupted Carbon-fiber Leg. Map ----- +----------------------------------------------------+ | ????????????????????????? # # ## ## " | | ???????????????????? + + """ ## ## " | | ??????????????????????????# # "Y" ## ## " | | ??????????????????????????# # " " ## ## " | | ??????????????????????????# % # ## ## " | | ??????????????????????????# # """ ## ## | | ??????????????????????????#% # """ ## ## | | ??????????????????????????# # """ ## #### | | ??????????????????????????# # ## # ! | | ??????????????????????????# ########### # | | ??????????????????????????##+######?????????# # ! | | ???????????????????????????# #?############## # | | ???????????????????????????# #?# T # # | | ???????????????????????????# #?# """""" # #### | | ???????????????????????????# #?# """""" # #### | | ???????????????????????????# #?# """""" # | | ???????????????????????????# ###[ """""" # | | ???????????????????????????#^ /% """""" + | | ???????????????????????????# ### """""" # | | ???????????????????????????# #?# """""" # | | ???????????????????????????# #?# """""" # | | ???????????????????????????# #?# """""" =# | | ????????????????????######## #?# # % | | ????????????????????# ! ## #?# = # | | ????????????????# ### k%!## #?############## | | ????????????????# Y @## #??????????????# | | ????????????????## ## %% %r=#??????????????# | | ???????????????????##u % ## #??????????????###### | | ????????????????????#;;gg###/####????????????????? | | ????????????????????###g #????????????????? | | ??????????????????????# ""G"" #????????????????? | | ??????????????????????# " " #???????????????## | | ??????????????????????# " " #???????????????# | | ??????????????????????# #???????????????# | | ??????????????????????# ! #???????????????# | | ??????????????????????# [ #???????????????## | | ??????????????????????# #????????????????? | | ??????????????????????###########????????????????? | | ?????????????????????????????????????????????????? | | ????????????????????????????????????????########## | | ????????????????????????????????????????# """ # | | ????????????????????????????????????????# "T" # | | ????????????????????????????????????????# # | | ????????????????????????????????????????# # | | ????????????????????????????????????????# + | | ????????????????????????????????????????# % # | | ????????????????????????????????????????# [ # | | ????????????????????????????????????????# !%* # | | ????????????????????????????????????????# [ # | | ????????????????????????????????????????## ####### | +----------------------------------------------------+ Best States ------------- Heat Dissipation 61 Energy Generation 15 Energy Capacity 280 Matter Stores 300 Matter Capacity 300 Sight Range 16 Robot Scan Range 15 Terrain Scan Density 85 Armor Coverage 375 Utility Shielding 33 Evasion (%) 42 Recoil Reduction 1 Offensive Hacking 10 Defensive Hacking 10 Item Schematics ----------------- Shock Bomb Launcher | -7/Factory | Scanalyzed Imp. Signal Interpreter | -7/Factory | Hacked Arm. Huge Wheel | -7/Factory | Hacked Robot Schematics ------------------ None Fabricated ------------ Nothing Alien Tech Used ----------------- None Achievements -------------- None Challenges ------------ None Game ------ Seed DecoderSurveybotInverter Manual? 0 Play Time 00:36:47 Cumulative 90.1 hours Start 2021.06.06 @ 22:10:14 End 2021.06.06 @ 22:45:55 Sessions 1 Manual Loads 0 Difficulty Rogue Special Mode None Game No. 36 Rogue 36 Adventurer 0 Explorer 0 Win Type - Total 1 Types 1/0/0/0/0/0/0/0/0 Lore% 53 Gallery% 60 Achievement% 49 Wizard Run 0 Options --------- ASCII 0 Keyboard 0 Movement Mouse Keybinds 0 Fullscreen 1 Font 18/SmallcapsGlow Map View 76x50 Tactical HUD 1 Map Filters NONE Filters NONE Steam 1 RUN: 66ce65ac-fb17-4fe9-8339-30b75b733e1c